Cogmind - Beta 14 @@@ ROGUE MODE // 2025.01.09 @ 21:47:22 Player: MadBadger Result: Destroyed by Y-45 Defender with Beam Rifle Performance ------------- Evolutions (1) 500 Regions Visited (2) 400 Robots Destroyed (44) 220 Value Destroyed (1181) 1181 Prototype IDs (2) 40 Alien Tech Used (0) 0 Bonus (0) 0 TOTAL SCORE: 2341 Bonus ------- None Cogmind --------- Core Integrity 0/400 Matter 283/300 Energy 275/275 System Corruption 0% Temperature Cool (9) Movement Core (900) Ox17 Location -9/Materials Parts ------- > --- POWER (1) -------- Deuterium Engine > --- PROPULSION (3) --- (None) > --- UTILITY (2) ------ High-capacity Storage Unit Structural Scanner > --- WEAPON (3) ------- Shotgun > --- INVENTORY (20) --- Deuterium Engine Deuterium Engine Deuterium Engine Light Nuclear Core Light Nuclear Core Light Nuclear Core Heat Sink Small Storage Unit Signal Interpreter Signal Interpreter EM Shotgun Light Assault Rifle Improved Assault Rifle Improved Assault Rifle Improved Light Cannon Improved Grenade Launcher Improved Grenade Launcher Improved Grenade Launcher Mining Laser Peak State ------------ > --- POWER ------------ Light Nuclear Core > --- PROPULSION ------- Light Treads Light Treads > --- UTILITY ---------- High-capacity Storage Unit Structural Scanner > --- WEAPON ----------- Beam Rifle Beam Rifle Improved Assault Rifle > --- INVENTORY -------- Ion Engine Light Ion Engine Heavy Ion Engine Heavy Ion Engine Heavy Ion Engine Light Nuclear Core Heat Sink Small Storage Unit Signal Interpreter Signal Interpreter Signal Interpreter EM Shotgun Light Assault Rifle Shotgun Improved Assault Rifle Improved Assault Rifle Improved Light Cannon Rocket Launcher Mining Laser [Rating: 17] Favorites ----------- Power Light Nuclear Core Engine Ion Engine Power Core Light Nuclear Core Propulsion Light Treads Treads Light Treads Utility Structural Scanner Device Structural Scanner Storage High-capacity Storage Unit Weapon Beam Rifle Energy Gun Beam Rifle Ballistic Gun Light Assault Rifle Launcher Rocket Launcher Build | -11 -10 -9 ------- Run | Yrd Mat Mat Slots Evolved 2 | . . 2 Power . | . . . Propulsion 1 | . . 1 Utility . | . . . Weapon 1 | . . 1 Parts Attached 31 | 6 5 20 Power 7 | 1 1 5 Engine 5 | 1 1 3 Core 2 | . . 2 Reactor . | . . . Propulsion 8 | 2 2 4 Treads 8 | 2 2 4 Leg . | . . . Wheel . | . . . Hover . | . . . Flight . | . . . Utility 3 | 1 1 1 Device 1 | . 1 . Storage 2 | 1 . 1 Processor . | . . . Hackware . | . . . Protection . | . . . Artifact . | . . . Weapon 13 | 2 1 10 Energy Gun 6 | 1 1 4 Energy Cannon . | . . . Ballistic Gun 6 | 1 . 5 Ballistic Cannon . | . . . Launcher 1 | . . 1 Special Weapon . | . . . Impact Weapon . | . . . Slashing Weapon . | . . . Piercing Weapon . | . . . Special Melee Weapon . | . . . Unidentified Prototypes 2 | . . 2 Parts Lost 15 | . . 15 Power 2 | . . 2 Propulsion 6 | . . 6 Utility . | . . . Weapon 7 | . . 7 Highest Loss Streak 4 | . . 4 To Critical Strikes . | . . . Average Slot Usage (%) 84 | . 97 78 Engine 6 | . 13 3 Core 3 | . . 5 Treads 21 | . 27 19 Device 11 | . 12 11 Storage 11 | . 14 11 Energy Gun 17 | . 13 19 Ballistic Gun 10 | . 14 9 Peak Build Rating 17 | 6 7 17 Average Rating 10 | 4 6 12 On Entrance 4 | . 6 7 Naked Turns . | . . . Heaviest Build 58 | 13 14 58 Greatest Support 60 | 40 40 60 Greatest Overweight (x) 2 | . 2 2 Average Overweight (x) . | . . 1 Largest Inventory Capacity 20 | 8 8 20 Average Capacity 14 | 7 8 17 Most Carried 20 | 1 6 20 Average Carried 8 | . 2 11 Final Capacity 20 | 8 8 20 Final Carried 19 | 1 6 19 Class Distribution -------------------- 52% | Mutant 47% | Skirmisher Dominant Class ---------------- Mutant | -10/Materials Skirmisher | -9/Materials Resources | -11 -10 -9 ----------- Run | Yrd Mat Mat Matter Collected 746 | 211 148 387 Remotely . | . . . Salvage Created 1650 | . 504 1146 Parts 113 | . 42 71 Haulers Intercepted 1 | . . 1 Recyclers Shooed 2 | . . 2 Parts Field Recycled . | . . . Retrieved Matter . | . . . Parts Self-Destructed . | . . . Prevented . | . . . Kills | -11 -10 -9 ------- Run | Yrd Mat Mat Combat Hostiles Destroyed 28 | . 9 19 Guns 28 | . 9 19 Classes Destroyed 9 | . 4 5 Worker 2 | . . 2 Builder 3 | . 2 1 Hauler 1 | . . 1 Recycler 2 | . 1 1 Watcher 8 | . 3 5 Swarmer 3 | . . 3 Grunt 19 | . 9 10 Brawler 1 | . . 1 Sentry 5 | . . 5 Best Kill Streak 4 | . 4 4 Combat Bots Only 3 | . 2 3 Max Kills in Single Turn 2 | . 1 2 Gunslinging . | . . . Exploded . | . . . Melee . | . . . Uniques/NPCs Destroyed . | . . . Combat | -11 -10 -9 -------- Run | Yrd Mat Mat Hostile Shots Fired 179 | . 42 137 Missed 41 | . 10 31 Damage Taken 1983 | . 466 1517 Core 513 | . 112 401 Absorbed by Shields . | . . . Core Remaining (%) 77 | 100 55 . Volleys Fired 135 | . 42 93 Largest 3 | . 2 3 Hottest 157 | . 70 157 Shots Fired 316 | . 79 237 Gun 315 | . 79 236 Cannon . | . . . Launcher 1 | . . 1 Special . | . . . Kinetic 153 | . 42 111 Thermal 157 | . 37 120 Explosive 1 | . . 1 Electromagnetic 5 | . . 5 Robot Hit Streak 12 | . 9 12 Robot Miss Streak 7 | . 3 7 Penetration Max . | . . . Secondary Targets 4 | . 1 3 Max Gunslinging Chain 1 | . 1 1 Shots Hit Robots 180 | . 51 129 Core Hits 81 | . 29 52 Critical Kills 1 | . . 1 Critical Parts Destroyed 1 | . 1 . Critical Strikes 10 | . 3 7 Burn 8 | . 2 6 Destroy 2 | . 1 1 Melee Attacks . | . . . Impact . | . . . Slashing . | . . . Piercing . | . . . Sneak Attacks . | . . . Combat Hostiles . | . . . Follow-up Attacks . | . . . Damage Inflicted 2217 | . 555 1662 Guns 2086 | . 553 1533 Cannons . | . . . Explosions 124 | . . 124 Melee . | . . . Ramming 7 | . 2 5 Kinetic 922 | . 220 702 Thermal 1137 | . 333 804 Explosive 31 | . . 31 Electromagnetic 120 | . . 120 Impact . | . . . Slashing . | . . . Piercing . | . . . Highest Corruption 1 | . 1 . Average Corruption 1 | . 1 . Corruption Purged . | . . . Corruption Blocked . | . . . Effects 3 | . 3 . Message Errors 1 | . 1 . Matter Fused 1 | . 1 . Data Loss (major) 1 | . 1 . Overload Shots . | . . . Overflow Damage 2 | . . 2 Projectiles . | . . . Explosions 2 | . . 2 Melee . | . . . Knockbacks . | . . . Impact . | . . . Kinetic . | . . . Secondary . | . . . Self-Inflicted Damage 50 | . . 50 Shots 2 | . . 2 Rammed 2 | . . 2 Targets Rammed 3 | . 1 2 Kicked . | . . . Crushed 1 | . 1 . Highest Temperature 623 | . 183 623 Average Temperature 123 | . 64 145 Received Heat Transfer 912 | . 261 651 Effects 20 | . . 20 Shutdowns 2 | . . 2 Energy Bleed 4 | . . 4 Interference 2 | . . 2 Matter Decay 2 | . . 2 Short Circuit 1 | . . 1 Damage (minor) 2 | . . 2 Damage (major) 6 | . . 6 Damage (core) 1 | . . 1 Siege Activations . | . . . Robots Corrupted . | . . . Combat Hostiles . | . . . Parts Fried . | . . . Impact Corruptions . | . . . Robots Melted . | . . . Combat Hostiles . | . . . Parts Melted 6 | . 4 2 Heat Transferred 3663 | . 1147 2516 Parts Sabotaged . | . . . Parts Stolen . | . . . Parts Stripped . | . . . Power Chain Reactions . | . . . Alert | -11 -10 -9 ------- Run | Yrd Mat Mat Peak Influence 175 | . 131 175 Initial 33 | . . 33 Average 68 | . 43 81 Maximum Alert Level . | . . . Low Security (%) 100 | 100 100 100 Level 1 . | . . . Level 2 . | . . . Level 3 . | . . . Level 4 . | . . . Level 5 . | . . . High Security . | . . . Max Security . | . . . Squads Dispatched 3 | . 2 1 Investigation . | . . . Extermination . | . . . Reinforcement 3 | . 2 1 Assault . | . . . Garrison . | . . . Intercept . | . . . Searches Triggered . | . . . Construction Impeded . | . . . Haulers Reinforced . | . . . Active Scanning Responses . | . . . Cargo Convoy Interrupts . | . . . Stealth | -11 -10 -9 --------- Run | Yrd Mat Mat Distress Signals 1 | . . 1 Communications Jammed . | . . . Distress Signals . | . . . Times Spotted 55 | . 15 40 Peak Tracking Total 4 | . 3 4 Tactical Retreats . | . . . Traps | -11 -10 -9 ------- Run | Yrd Mat Mat Traps Triggered 3 | . 3 . Indirectly . | . . . Trap Hack Attempts . | . . . Triggered . | . . . Disarmed . | . . . Reprogrammed . | . . . Reused . | . . . Traps Extracted . | . . . Installed . | . . . Triggered . | . . . Machines | -11 -10 -9 ---------- Run | Yrd Mat Mat Machines Disabled 2 | . . 2 Max in Single Turn 2 | . . 2 Machines Repaired . | . . . Machines Dismantled . | . . . Machines Sabotaged . | . . . Overloaded Fab Kills . | . . . Hacking | -11 -10 -9 --------- Run | Yrd Mat Mat Machines Accessed . | . . . Terminals . | . . . Fabricators . | . . . Repair Stations . | . . . Recycling Units . | . . . Scanalyzers . | . . . Garrison Access . | . . . Total Hacks . | . . . Successful . | . . . Failed . | . . . Catastrophic . | . . . Database Lockouts . | . . . Manual . | . . . Terminals . | . . . Fabricators . | . . . Repair Stations . | . . . Recycling Units . | . . . Scanalyzers . | . . . Garrison Access . | . . . Terminal Hacks . | . . . Fabricator Hacks . | . . . Repair Station Hacks . | . . . Recycling Unit Hacks . | . . . Scanalyzer . | . . . Garrison Access Hacks . | . . . Unauthorized Hacks . | . . . Terminals . | . . . Fabricators . | . . . Repair Stations . | . . . Recycling Units . | . . . Scanalyzers . | . . . Garrison Access . | . . . Data Cores Recovered . | . . . Used . | . . . Hacking Detections . | . . . Full Trace Events . | . . . Feedback Events . | . . . Feedback Blocked . | . . . Robot Schematics Acquired . | . . . Robots Built . | . . . Authchips . | . . . Time . | . . . Total Robot Build Rating . | . . . Part Schematics Acquired . | . . . Parts Built . | . . . Authchips . | . . . Time . | . . . Total Part Build Rating . | . . . Parts Repaired . | . . . Time . | . . . Parts Recycled . | . . . Recycled Matter . | . . . Retrieved Matter . | . . . Retrieved Components . | . . . Parts Scanalyzed . | . . . Part Schematics Acquired . | . . . Parts Damaged . | . . . Bothacking | -11 -10 -9 ------------ Run | Yrd Mat Mat Used RIF Installer . | . . . Robots Hacked . | . . . Non-combat . | . . . Combat . | . . . Robot Hacks Applied . | . . . Relay Couplers Released . | . . . Fabnet Peak Effective % . | . . . Robots Rewired . | . . . Allies Hacked . | . . . Hacks Repelled . | . . . Allies | -11 -10 -9 -------- Run | Yrd Mat Mat Total Allies . | . . . Largest Group . | . . . Highest-Rated Group . | . . . Highest-Rated Ally . | . . . Total Orders . | . . . Ally Attacks . | . . . Total Damage . | . . . Kills . | . . . Allies Corrupted . | . . . Allies Melted . | . . . Intel | -11 -10 -9 ------- Run | Yrd Mat Mat Robot Analysis Total . | . . . Derelict Logs Recovered . | . . . Drone Launches . | . . . Drone Recoveries . | . . . Exploration | -11 -10 -9 ------------- Run | Yrd Mat Mat Turns Passed 3444 | 80 1017 2347 Spaces Moved 1420 | 45 529 846 Core 56 | 1 1 54 Treads 1364 | 44 528 792 Legs . | . . . Wheels . | . . . Hover . | . . . Flight . | . . . Fastest Speed 50 | 50 150 150 Average Speed 205 | 157 159 236 Slowest Speed 320 | 160 160 320 Overloaded Moves . | . . . Propulsion Burnouts . | . . . Robots Hopped . | . . . Cave-ins Triggered . | . . . Exploration Rate (%) 29 | 4 44 41 Regions Visited 2 Branch Regions . Pre-discovered Areas . | . . . Known Exits Taken . | . . . Unknown Exits Taken 2 | 1 1 . Scrap Searched . | . . . Spaces Dug . | . . . Terrain Destroyed 16 | . . 16 Melee . | . . . Projectile . | . . . AOE 16 | . . 16 Terrain Rammed . | . . . Walls Destroyed . | . . . Machines Disabled . | . . . Actions | -11 -10 -9 --------- Run | Yrd Mat Mat Total 1694 | 51 626 1017 Wait 71 | . 45 26 Move 1418 | 44 528 846 Hop . | . . . Pick Up 24 | 1 5 18 Fast Attach 22 | 6 5 11 Attach 6 | . . 6 Detach 5 | . . 5 Swap 3 | . . 3 Drop 7 | . . 7 Fire 135 | . 42 93 Melee . | . . . Ram 1 | . . 1 Kick . | . . . Crush 2 | . 1 1 Escape Stasis . | . . . Rewire . | . . . Trap . | . . . Miscellaneous . | . . . Route ------- -11/Scrapyard -10/Materials (discovered 2 exits: [*Mat x2]) -9/Materials (discovered 2 exits: [*Mat] / [*Min]) History --------- Turn | Location | Event 8 | -11/Scrapyard | Discovered new exit (range 15) 81 | -11/Scrapyard | Entered Materials 178 | -10/Materials | Discovered new exit (range 16) 301 | -10/Materials | Build established: Mutant 690 | -10/Materials | Discovered new exit (range 16) 1098 | -10/Materials | Entered another Materials area 1098 | -9/Materials | Evolved 2 slots: Propulsion x1, Weapon x1 1221 | -9/Materials | Lost 4 parts (1p2n1w) 1863 | -9/Materials | Build established: Skirmisher 1904 | -9/Materials | Core integrity fell below 50% 2253 | -9/Materials | Discovered new exit (range 13) 3144 | -9/Materials | Core integrity fell below 20% 3183 | -9/Materials | Discovered new exit (range 10) 3429 | -9/Materials | Build established: Mutant 3445 | -9/Materials | Destroyed by Y-45 Defender with Beam Rifle Last Messages --------------- 03216_ M-13 Machinist repairs R-06 Scavenger. 03237_ Acquired Imp. Grenade Launcher. 03249_ Dropped Rocket Launcher. 03249_ Acquired Imp. Grenade Launcher. 03262_ Dropped Signal Interpreter. 03274_ Dropped Ion Engine. 03274_ Dropped Lgt. Ion Engine. 03275_ Dropped Hvy. Ion Engine. 03278_ Acquired Deuterium Engine. 03281_ R-06 Scavenger collects Signal Interpreter. 03282_ Acquired Deuterium Engine. 03284_ R-06 Scavenger collects Lgt. Ion Engine. 03287_ Acquired Deuterium Engine. 03288_ R-06 Scavenger collects Rocket Launcher. 03292_ R-06 Scavenger collects Ion Engine. 03406_ Processing Tank disabled. 03412_ Imp. Assault Rifle destroyed. 03415_ Beam Rifle destroyed. 03439_ Lgt. Treads destroyed. 03442_ Broken Lgt. Treads destroyed. Map ----- +----------------------------------------------------+ | | | | | ?????????????????????????????????????????? | | ?????????????????????????????????????????? | | ?????####????????????????????????????????? | | ?????####????????????????????????????????? | | ####### ?? ???????????????????????? | | ####### ###########??????????????????????? | | # # #####"""### ?????????????????????? | | # # ####"|||"## ?????????????????????? | | # # ###"" ""# ?????????????????????? | | # "" # ### # ?????????????? | | # Y" # + < ############???????????? | | # "" # # # """ """ ##???????????? | | # + # # """ """ ##???????????? | | ####### ## ## """ """ ##???????????? | | ?###### ### ### ##???????????? | | ?##] ### ##???????????? | | ?## ### ##???????????? | | ?##!! """" ### ##???????????? | | ?##!! """ ### ##???????????? | | ?## """ ##+#####+#############??? | | ?## """ ############??? | | ?###### # ??? | | ?###### #" """ ""???? | | ?????## Y @ #T """ """ ## | | ?????#########+######### #"* """ """ ## | | ?????#### ###### %%+ % ## | | ???????## """"" ##??##[ ##+############ | | ???????## """"" ##??##[*%# ##### | | ???????## """" ##??## =!# + | | ???????## ##??## # ##### | | ??????### !!! ##??## % # ##### | | ??????## !!! "T" + ? + ##?## | | ??????### !! """ ##?### # ##?## | | ??????##############?##### # ##??# | | ???????########### ?? ## # ##### | | ????????????????????????##%############### | | ????????????????????????# = ######## """" | | ?????????????????????????? ??????## """" | | ?????????????????????????? ##????## """" | | ?????????????????????????? ###????## | | ?????????????????????????? ###????## | | ?????????????????????????? ???????## | | ?????????????????????????? ???????#####+## | | ??????????????????????????????????#####=## | | ?????????????????????????????????????##%## | | ?????????????????????????????????????## ## | | ?????????????????????????????????????## ## | | ?????????????????????????????????????## ## | +----------------------------------------------------+ Best States ------------- Heat Dissipation 28 Energy Generation 14 Energy Capacity 280 Matter Stores 300 Matter Capacity 300 Sight Range 16 Terrain Scan Density 10 Evasion (%) 40 Recoil Reduction 3 Item Schematics ----------------- None Robot Schematics ------------------ None Fabricated ------------ Nothing Alien Tech Used ----------------- None Achievements -------------- None Challenges ------------ None Game ------ Seed HoverPitchforkCompanion Manual? 0 Play Time 00:20:19 Cumulative 20.1 hours Start 2025.01.09 @ 20:59:28 End 2025.01.09 @ 21:47:22 Sessions 1 Manual Loads 0 Difficulty Rogue Special Mode None Game No. 41 Rogue 41 Adventurer 0 Explorer 0 Win Type - Total 0 Types 0/0/0/0/0/0/0/0/0 Lore% 7 Gallery% 13 Achievement% 14 Wizard Run 0 Options --------- Layout 0 ASCII 0 Keyboard 1 Movement Numpad Keybinds 0 Fullscreen 1 Font 24/Smallcaps Map View 76x50 Zoom Use 0% Tactical HUD 1 Map Filters NONE Filters NONE Steam 1 RUN: 3f7136ef-afd8-4fd7-ba52-845516e73ae9